[Event "Catalan Youth-ch 2020"]
[Site "Salou"]
[Date "2020.09.07"]
[Round "5.7"]
[White "Jove Albaiges, Guillem"]
[Black "Mompel Ferruz, Xavier"]
[Result "0-1"]
[ECO "D14"]
[WhiteElo "1491"]
[BlackElo "1505"]
[Annotator "NA"]
[PlyCount "52"]
[EventDate "2020.09.07"]
[EventType "swiss"]
[EventCountry "ESP"]
[SourceTitle "playchess.com"]
[Source "ChessBase"]
[SourceQuality "1"]
[TimeControl "5400+30"]

1. d4 {[%emt 0:00:00]} d5 {[%emt 0:00:13]} 2. c4 {[%emt 0:00:00]} c6 {[%emt 0:00:35]} 3. Nf3 {[%emt 0:00:06]} Nf6 {[%emt 0:00:41]} 4. cxd5 {[%emt 0:00:23]} cxd5 {[%emt 0:00:25]} 5. Bf4 {[%emt 0:00:38]} Nc6 {[%emt 0:02:31]} 6. Nc3 {[%emt 0:01:37]} Bf5 {[%emt 0:01:34]} 7. Qb3 {[%emt 0:04:20]} Qb6 {[%emt 0:20:22]} 8. Qxb6 {[%emt 0:00:27]} axb6 {[%emt 0:00:06]} 9. Nb5 {[%emt 0:16:05]} Kd7 {[%emt 0:00:00]} 10. a3 {[%emt 0:15:56]} e6 {[%emt 0:00:30]} 11. e3 {[%emt 0:01:16]} Bb4+ 12. Ke2 {[%emt 0:11:17]} Ra5 {[%emt 0:01:28]} 13. Nc3 {[%emt 0:01:25]} Bxc3 {[%emt 0:00:15]} 14. bxc3 {[%emt 0:04:16]} Rha8 15. g4 {[%emt 0:01:49]} Bxg4 16. Bg2 {[%emt 0:01:22]} Rxa3 17. Rxa3 {[%emt 0:01:29]} Rxa3 {[%emt 0:01:06]} 18. Rb1 {[%emt 0:00:42]} Rxc3 {[%emt 0:04:25]} 19. Rxb6 {[%emt 0:02:22]} Rc2+ {[%emt 0:00:14]} 20. Kf1 {[%emt 0:00:35]} Kc8 {[%emt 0:03:29]} 21. e4 {[%emt 0:03:17]} dxe4 {[%emt 0:00:13]} 22. Ng5 {[%emt 0:02:15]} Nd5 {[%emt 0:03:14]} 23. Rb1 {[%emt 0:00:34]} Nxf4 {[%emt 0:00:32]} 24. Bxe4 {[%emt 0:00:00]} Rd2 25. Nxf7 {[%emt 0:04:05]} Rxd4 {[%emt 0:02:29]} 26. Rc1 {[%emt 0:00:16]} Bh3+ {[%emt 0:00:41]} 0-1

[Event "Catalan Youth-ch 2020"]
[Site "Salou"]
[Date "2020.09.07"]
[Round "5.8"]
[White "Prats Safont, Sergi"]
[Black "Pueyo Amoros, Pau"]
[Result "1-0"]
[ECO "B41"]
[WhiteElo "2103"]
[BlackElo "1784"]
[Annotator "NA"]
[PlyCount "37"]
[EventDate "2020.09.07"]
[EventType "swiss"]
[EventCountry "ESP"]
[SourceTitle "playchess.com"]
[Source "ChessBase"]
[SourceQuality "1"]
[TimeControl "5400+30"]

1. e4 {[%emt 0:00:02]} c5 {[%emt 0:00:08]} 2. Nf3 {[%emt 0:00:06]} e6 {[%emt 0:00:16]} 3. d4 {[%emt 0:00:11]} cxd4 {[%emt 0:00:17]} 4. Nxd4 {[%emt 0:00:06]} a6 {[%emt 0:00:24]} 5. c4 {[%emt 0:00:31]} Nf6 {[%emt 0:00:23]} 6. Nc3 {[%emt 0:00:06]} Qc7 {[%emt 0:00:12]} 7. a3 {[%emt 0:00:36]} Bd6 {[%emt 0:01:53]} 8. h3 {[%emt 0:03:17]} O-O {[%emt 0:01:34]} 9. Be3 {[%emt 0:00:55]} Rd8 {[%emt 0:02:26]} 10. Be2 {[%emt 0:02:50]} Nc6 {[%emt 0:00:43]} 11. O-O {[%emt 0:04:42]} Bh2+ {[%emt 0:00:36]} 12. Kh1 {[%emt 0:00:07]} Bf4 {[%emt 0:00:09]} 13. Nc2 {[%emt 0:07:44]} b6 {[%emt 0:05:11]} 14. Qd2 {[%emt 0:03:24]} Bxe3 {[%emt 0:00:58]} 15. Qxe3 {[%emt 0:00:34]} d5 {[%emt 0:04:05]} 16. cxd5 {[%emt 0:03:22]} exd5 {[%emt 0:00:22]} 17. exd5 {[%emt 0:00:08]} Nxd5 {[%emt 0:00:20]} 18. Nxd5 {[%emt 0:00:09]} Rxd5 {[%emt 0:00:18]} 19. Qe8# {[%emt 0:00:50]} 1-0

[Event "Catalan Youth-ch 2020"]
[Site "Salou"]
[Date "2020.09.07"]
[Round "5.8"]
[White "Lazaro del Arco, Martina"]
[Black "Prada Villagrasa, Pau Manel"]
[Result "0-1"]
[ECO "A48"]
[WhiteElo "1255"]
[BlackElo "1573"]
[Annotator "NA"]
[PlyCount "88"]
[EventDate "2020.09.07"]
[EventType "swiss"]
[EventCountry "ESP"]
[SourceTitle "playchess.com"]
[Source "ChessBase"]
[SourceQuality "1"]
[TimeControl "5400+30"]

1. d4 {[%emt 0:00:00]} Nf6 {[%emt 0:00:00]} 2. Nf3 {[%emt 0:01:05]} g6 {[%emt 0:00:55]} 3. Bf4 {[%emt 0:01:59]} Bg7 {[%emt 0:00:36]} 4. e3 {[%emt 0:01:08]} d6 {[%emt 0:06:50]} 5. h3 {[%emt 0:06:08]} O-O {[%emt 0:00:00]} 6. Bd3 {[%emt 0:03:25]} Nbd7 {[%emt 0:00:00]} 7. O-O {[%emt 0:03:17]} Re8 {[%emt 0:07:25]} 8. Bh2 {[%emt 0:07:58]} b6 {[%emt 0:00:00]} 9. c4 {[%emt 0:04:24]} c5 {[%emt 0:06:55]} 10. d5 {[%emt 0:05:57]} Bb7 {[%emt 0:00:00]} 11. Nc3 {[%emt 0:04:46]} Nb8 {[%emt 0:05:29]} 12. Rc1 {[%emt 0:01:26]} e5 {[%emt 0:00:00]} 13. e4 {[%emt 0:02:59]} a6 {[%emt 0:03:31]} 14. b3 {[%emt 0:05:45]} Nh5 {[%emt 0:02:02]} 15. Ne2 {[%emt 0:03:11]} f5 {[%emt 0:07:30]} 16. Nc3 {[%emt 0:02:25]} f4 {[%emt 0:05:45]} 17. Qc2 {[%emt 0:04:12]} h6 {[%emt 0:06:39]} 18. Na4 {[%emt 0:02:08]} g5 {[%emt 0:00:00]} 19. Rfd1 {[%emt 0:15:26]} Bc8 {[%emt 0:05:58]} 20. Be2 {[%emt 0:03:24]} Nf6 {[%emt 0:04:30]} 21. Kh1 {[%emt 0:03:06]} Nh7 {[%emt 0:00:00]} 22. Ng1 {[%emt 0:00:55]} Nf6 {[%emt 0:01:18]} 23. g4 {[%emt 0:03:15]} Bd7 {[%emt 0:00:00]} 24. Nc3 {[%emt 0:01:19]} Rf8 {[%emt 0:00:00]} 25. f3 {[%emt 0:00:00]} h5 {[%emt 0:03:25]} 26. Rf1 {[%emt 0:02:20]} Qe8 {[%emt 0:00:00]} 27. Rf2 {[%emt 0:02:37]} b5 {[%emt 0:00:46]} 28. Rb1 {[%emt 0:02:20]} Ra7 {[%emt 0:01:41]} 29. Rb2 {[%emt 0:01:05]} Rb7 {[%emt 0:00:00]} 30. Nd1 {[%emt 0:00:00]} Qg6 {[%emt 0:00:00]} 31. Rg2 {[%emt 0:03:23]} Qh6 {[%emt 0:00:00]} 32. Nf2 {[%emt 0:00:00]} Bc8 {[%emt 0:00:00]} 33. a3 {[%emt 0:00:51]} b4 {[%emt 0:00:00]} 34. a4 {[%emt 0:00:00]} Rbf7 {[%emt 0:01:18]} 35. h4 {[%emt 0:00:00]} hxg4 {[%emt 0:00:00]} 36. hxg5 {[%emt 0:00:00]} Qxg5 {[%emt 0:00:00]} 37. Nxg4 {[%emt 0:00:00]} Nxg4 {[%emt 0:00:00]} 38. fxg4 {[%emt 0:00:00]} f3 {[%emt 0:00:00]} 39. Bxf3 {[%emt 0:00:40]} Rxf3 {[%emt 0:00:00]} 40. Nxf3 {[%emt 0:00:00]} Rxf3 {[%emt 0:00:00]} 41. Qd2 {[%emt 0:00:00]} Qh4 {[%emt 0:00:00]} 42. Qe2 {[%emt 0:01:21]} Bxg4 {[%emt 0:00:00]} 43. Qd2 {[%emt 0:02:01]} Rf1+ {[%emt 0:00:00]} 44. Rg1 {[%emt 0:00:18]} Bf3+ {[%emt 0:00:00]} 0-1

[Event "Catalan Youth-ch 2020"]
[Site "Salou"]
[Date "2020.09.08"]
[Round "6.3"]
[White "Lobo Pereira, Arami"]
[Black "Parra Ordorica, Arnau"]
[Result "0-1"]
[ECO "D13"]
[WhiteElo "1788"]
[BlackElo "1808"]
[Annotator "NA RC"]
[PlyCount "118"]
[EventDate "2020.09.07"]
[EventType "swiss"]
[EventCountry "ESP"]
[SourceTitle "playchess.com"]
[Source "ChessBase"]
[SourceQuality "1"]
[TimeControl "5400+30"]

{[%evp 15,105,0,0,0,32767,32767,32767,32767,0,0,32767,-17,0,-63,-8,-20,10,2,13,4,14,4,22,18,57,0,0,-6,13,-69,-47,-64,-56,-62,-26,-18,-9,-40,14,0,27,0,0,-41,32767,32767,32767,32767,32767,32767,32767,32767,32767,32767,32767,32767,32767,-234,-174,-185,-168,-182,-12,-26,-24,-17,-25,-71,-63,-132,-143,-144,-132,-252,-312,-739,-983,-921,-645,-463,-313,-595,-270,-596,-979,-1429,-1822,-4132,-12840,-4606,-12843,-2182]} 1. d4 {[%emt 0:00:00]} d5 {[%emt 0:00:00]} 2. c4 {[%emt 0:00:59]} c6 {[%emt 0:00:25]} 3. Nc3 {[%emt 0:00:40]} Nf6 {[%emt 0:00:26]} 4. cxd5 {[%emt 0:01:53]} cxd5 {[%emt 0:00:09]} 5. Bf4 {[%emt 0:01:01]} Nc6 {[%emt 0:01:21]} 6. e3 {[%emt 0:00:34]} a6 {[%emt 0:02:23]} 7. a3 {[%emt 0:02:50]} Bf5 {[%emt 0:00:37]} 8. Bd3 {[%emt 0:03:20]} Bxd3 {[%emt 0:00:29]} 9. Qxd3 {[%emt 0:00:07]} e6 {[%emt 0:00:20]} 10. Rc1 {[%emt 0:02:19]} Be7 {[%emt 0:02:58]} 11. Nf3 {[%emt 0:01:12]} Rc8 {[%emt 0:04:05]} 12. O-O {[%emt 0:02:10]} O-O {[%emt 0:00:17]} 13. Na4 {[%emt 0:10:00] D13: Slav Defence: Exchange variation without ...Bf5.} Ne4 {[%emt 0:04:40] [#]} 14. Nc5 $146 {[%emt 0:02:32]} ({White should try Predecessor:} 14. Nd2 $11 Nxd2 15. Qxd2 Qa5 16. Qxa5 Nxa5 17. Nb6 Rc6 18. Rxc6 Nxc6 19. Rc1 f6 20. Bg3 g5 {½-½ (102) Ananya,R (1395)-Xu,Y (1803) Durban 2014}) 14... Nxc5 {[%emt 0:01:52]} (14... Bxc5 $15 15. dxc5 Qe7) 15. dxc5 {[%emt 0:00:13]} Bf6 {[%emt 0:00:12]} 16. Bd6 {[%emt 0:01:22]} Be7 {[%emt 0:00:53]} 17. Bxe7 {[%emt 0:00:35]} Qxe7 {[%emt 0:01:10]} 18. Rfd1 {[%emt 0:06:22]} Rfd8 {[%emt 0:05:32]} 19. b4 {[%emt 0:05:41]} e5 {[%emt 0:03:50]} 20. Qf5 {[%emt 0:03:42]} g6 {[%emt 0:03:57]} 21. Qg4 {[%emt 0:06:59]} f5 {[%emt 0:08:22]} 22. Qh4 {[%emt 0:01:05]} (22. Qg3 $11) 22... Qxh4 {[%emt 0:01:29]} 23. Nxh4 {[%emt 0:00:03]} e4 {[%emt 0:12:36]} 24. g3 {[%emt 0:12:21]} Ne5 {[%emt 0:03:22]} 25. Ng2 {[%emt 0:03:54]} g5 {[%emt 0:02:19]} 26. Kf1 {[%emt 0:04:47]} Nd3 {[%emt 0:05:07]} 27. Rc2 {[%emt 0:06:32]} Rd7 {[%emt 0:00:54]} 28. Ne1 {[%emt 0:00:00]} Ne5 {[%emt 0:01:18]} 29. Rd4 {[%emt 0:00:00]} Kf7 {[%emt 0:02:40]} 30. Ke2 {[%emt 0:01:03]} Rcd8 {[%emt 0:03:28]} 31. Rb2 {[%emt 0:00:00]} h6 {[%emt 0:00:00]} 32. Rb1 {[%emt 0:01:03]} Nc6 {[%emt 0:00:00]} 33. Rd2 {[%emt 0:01:20]} d4 {[%emt 0:00:00]} 34. exd4 {[%emt 0:00:48]} Nxd4+ {[%emt 0:00:00]} 35. Kd1 {[%emt 0:01:10]} Ke6 {[%emt 0:03:03]} 36. Rbb2 {[%emt 0:01:40]} Nb5 {[%emt 0:00:00]} 37. a4 {[%emt 0:03:10]} Nc3+ {[%emt 0:00:00]} 38. Kc1 {[%emt 0:01:41]} a5 {[%emt 0:00:09]} ({Black should try} 38... Ke5 $19 39. a5 Rd4) 39. bxa5 {[%emt 0:00:00]} Nxa4 {[%emt 0:01:23]} 40. Rxd7 {[%emt 0:00:25]} Rxd7 {[%emt 0:07:06]} 41. Rb5 {[%emt 0:01:29]} Rc7 {[%emt 0:01:25]} 42. Nc2 {[%emt 0:02:22]} (42. Kd2 $15) 42... Nxc5 {[%emt 0:04:00]} 43. Nd4+ {[%emt 0:08:40]} Ke5 {[%emt 0:00:00]} 44. Nb3 {[%emt 0:00:18] [#]} (44. Nc2 $17 {is the only way for White.}) 44... Kd5 $1 {[%emt 0:00:00]} 45. Kb2 $2 {[%emt 0:01:22]} (45. Nd2 Kd4 46. Rb4+ Kd3 47. Kd1) 45... Kc4 {[%emt 0:00:00]} 46. Rb6 {[%emt 0:01:05]} Nxb3 {[%emt 0:00:00]} 47. Rxb3 {[%emt 0:00:09]} Rd7 {[%emt 0:00:00]} 48. Rb6 $2 {[%emt 0:03:00]} (48. Rc3+ Kb4 49. Kc2) 48... Rd2+ {[%emt 0:00:00]} (48... Kd3 $142 49. Kc1 Ke2) 49. Kc1 $2 {[%emt 0:00:00]} (49. Ka3 {nothing else works.} Rd1 50. Kb2) 49... Rxf2 {[%emt 0:00:00]} 50. Rxh6 {[%emt 0:00:00]} f4 {[%emt 0:00:00]} 51. gxf4 {[%emt 0:00:00]} gxf4 {[%emt 0:00:00]} 52. Kd1 {[%emt 0:00:31]} Kd3 $19 {[%emt 0:00:27]} 53. Rd6+ {[%emt 0:00:34]} Ke3 {[%emt 0:00:11]} 54. Rb6 {[%emt 0:00:14]} Rxh2 {[%emt 0:00:44]} 55. Rxb7 {[%emt 0:00:11]} Ra2 {[%emt 0:00:21]} 56. Rb3+ {[%emt 0:00:19]} Kf2 {[%emt 0:00:05]} 57. a6 {[%emt 0:00:13]} e3 {[%emt 0:00:34]} 58. Kc1 {[%emt 0:01:01]} e2 {[%emt 0:00:24]} 59. Rb2 {[%emt 0:00:15]} Rxb2 {[%emt 0:00:25]} 0-1

[Event "Catalan Youth-ch 2020"]
[Site "Salou"]
[Date "2020.09.08"]
[Round "6.4"]
[White "Parra Ordorica, Gorka"]
[Black "Pera Muntasell, Marc"]
[Result "0-1"]
[ECO "E00"]
[WhiteElo "1883"]
[BlackElo "1890"]
[Annotator "NA RC"]
[PlyCount "46"]
[EventDate "2020.09.07"]
[EventType "swiss"]
[EventCountry "ESP"]
[SourceTitle "playchess.com"]
[Source "ChessBase"]
[SourceQuality "1"]
[TimeControl "5400+30"]

{[%evp 8,46,55,29,50,0,66,23,31,26,41,29,40,44,47,26,41,27,35,16,60,75,83,51,43,67,74,62,61,-30,-22,-133,-108,-195,-195,-183,-194,-525,-553,-516,-591]} 1. d4 {[%emt 0:00:00]} Nf6 {[%emt 0:00:00]} 2. c4 {[%emt 0:00:00]} e6 {[%emt 0:00:00]} 3. g3 {[%emt 0:00:39]} a6 {[%emt 0:00:00]} 4. Bg2 {[%emt 0:00:48]} Be7 {[%emt 0:01:23]} 5. Nf3 {[%emt 0:00:34]} b5 {[%emt 0:01:05]} 6. Ne5 {[%emt 0:06:17] E00: Catalan Bogo-Indian (3 g3 Bb4+).} c6 {[%emt 0:03:41] [#]} (6... Ra7 $1 $11) 7. d5 $146 {[%emt 0:10:16]} ({Better is Predecessor:} 7. c5 $1 $16 Bb7 8. O-O d6 9. cxd6 Bxd6 10. Nd3 Nbd7 11. e4 Be7 12. e5 Nd5 13. Qg4 {1-0 (37) Thapa,K (1916)-Kusatha,N (1865) Budhanilkantha 2019}) 7... cxd5 {[%emt 0:03:57]} 8. cxd5 {[%emt 0:00:48]} Bb7 {[%emt 0:09:02]} 9. Nxf7 {[%emt 0:09:26]} Kxf7 {[%emt 0:01:07]} 10. dxe6+ {[%emt 0:00:13]} dxe6 {[%emt 0:00:19]} 11. Qxd8 {[%emt 0:00:28]} Rxd8 {[%emt 0:00:38]} 12. Bxb7 {[%emt 0:00:13]} Ra7 {[%emt 0:00:04]} 13. Bg2 {[%emt 0:00:39]} Rad7 {[%emt 0:09:53] [#]} 14. O-O $1 {[%emt 0:01:24]} Rd1 {[%emt 0:03:20]} 15. Bf4 {[%emt 0:02:43]} Rxf1+ {[%emt 0:05:56]} 16. Bxf1 {[%emt 0:00:15]} Rd1 {[%emt 0:05:03]} 17. Bxb8 {[%emt 0:05:09]} Nd7 {[%emt 0:00:34]} 18. a4 {[%emt 0:22:33]} (18. Bc7 $14) 18... b4 {[%emt 0:13:08]} 19. Bc7 {[%emt 0:00:59] [#]} ({Better is} 19. Ba7 $1 $15 Bc5 20. Bxc5 Nxc5 21. a5) 19... Nc5 $1 {[%emt 0:01:38]} 20. Bf4 {[%emt 0:15:59]} (20. e4 $17 {might work better.}) 20... Nb3 {[%emt 0:04:08]} 21. Ra2 {[%emt 0:00:36]} Rxb1 {[%emt 0:00:39]} 22. Kg2 $2 {[%emt 0:03:13]} (22. a5) 22... Nc1 {[%emt 0:01:27]} 23. Bxc1 {[%emt 0:00:26]} b3 $19 {[%emt 0:00:16]} ({And not} 23... Rxc1 24. b3 $14) 0-1

[Event "Catalan Youth-ch 2020"]
[Site "Salou"]
[Date "2020.09.08"]
[Round "6.5"]
[White "Muntal Corrales, Arnau"]
[Black "Lambert Pont, James"]
[Result "1/2-1/2"]
[ECO "D36"]
[WhiteElo "1812"]
[BlackElo "1574"]
[Annotator "NA RC"]
[PlyCount "79"]
[EventDate "2020.09.07"]
[EventType "swiss"]
[EventCountry "ESP"]
[SourceTitle "playchess.com"]
[Source "ChessBase"]
[SourceQuality "1"]
[TimeControl "5400+30"]

{[%evp 9,65,24,14,14,32767,32767,32767,32767,32767,18,14,9,22,-108,-95,-98,-89,-124,-96,-131,-106,-159,-120,-117,0,-68,-74,-200,-185,32767,32767,32767,32767,32767,32767,-210,-219,-225,-225,-212,-208,-216,-185,-181,-189,-204,-93,-100,-69,-130,-39,-16,533,582,571,597,510,622]} 1. d4 {[%emt 0:00:00]} d5 {[%emt 0:00:00]} 2. c4 {[%emt 0:00:00]} e6 {[%emt 0:00:01]} 3. Nc3 {[%emt 0:00:00]} Nf6 {[%emt 0:00:46]} 4. cxd5 {[%emt 0:00:49]} exd5 {[%emt 0:00:08]} 5. Bg5 {[%emt 0:00:43]} c6 {[%emt 0:00:51]} 6. e3 {[%emt 0:00:49]} Bd6 {[%emt 0:00:43]} 7. Qc2 {[%emt 0:02:19]} O-O {[%emt 0:01:37] D36: Queen's Gambit Declined: Exchange Variation: Main line (5 Bg5 c6 6 Qc2).} 8. Bd3 {[%emt 0:02:28]} h6 {[%emt 0:02:09]} 9. Bh4 {[%emt 0:03:23]} Re8 {[%emt 0:02:44]} 10. Nge2 {[%emt 0:06:37]} a5 {[%emt 0:04:38]} 11. O-O {[%emt 0:04:52] [#]} (11. a3 $11 {keeps the balance.}) 11... Bxh2+ $1 {[%emt 0:06:54]} 12. Kxh2 {[%emt 0:07:25]} Ng4+ {[%emt 0:00:45] Discovered Attack} 13. Kg3 {[%emt 0:06:59]} g5 {[%emt 0:01:55]} 14. Bf5 {[%emt 0:06:26]} gxh4+ {[%emt 0:02:33]} 15. Kh3 {[%emt 0:02:40] [#]} h5 $1 {[%emt 0:08:39]} 16. g3 {[%emt 0:04:43] [#]} Kh8 $146 {[%emt 0:22:03]} ({Black should play} 16... Nh6 $17 17. Bxc8 Qxc8+ 18. Kg2 Qg4) ({Predecessor:} 16... Re4 17. Bxc8 Qxc8 18. Kg2 Qf5 19. Ng1 hxg3 20. Nxe4 dxe4 21. Kxg3 h4+ 22. Kxh4 Nd7 23. f3 Ngf6 24. Kg3 Kf8 25. Qh2 Ke7 26. Kf2 Ng4+ {0-1 (26) Litvinov,V-Anufrienko,D (1953) Barnaul 2013}) 17. Nf4 {[%emt 0:05:33]} (17. Kg2 $11) 17... hxg3 {[%emt 0:03:16]} 18. Bxc8 {[%emt 0:13:56]} (18. Nxh5 $15 Re4 19. Nxg3 Bxf5 20. Nxf5) 18... Qxc8 {[%emt 0:07:40]} 19. Kg2 {[%emt 0:07:20]} gxf2 {[%emt 0:03:05]} 20. Nd1 {[%emt 0:02:56]} Nxe3+ {[%emt 0:06:02]} 21. Nxe3 {[%emt 0:00:46]} Rxe3 {[%emt 0:00:15]} 22. Qxf2 {[%emt 0:05:00]} Qg4+ {[%emt 0:05:46]} 23. Kh2 {[%emt 0:00:28]} Re4 {[%emt 0:03:40]} 24. Rae1 {[%emt 0:03:01]} Nd7 {[%emt 0:02:50]} 25. Rxe4 {[%emt 0:03:03]} dxe4 {[%emt 0:00:06]} 26. Rg1 {[%emt 0:00:26]} Qf5 {[%emt 0:03:26]} 27. Qh4 {[%emt 0:03:27] [#]} Nf6 {[%emt 0:02:06]} ({Better is} 27... Rg8 $1 $19 28. Nxh5 Rxg1 29. Kxg1 Kg8 30. Qg3+ Qg6 31. Qxg6+ fxg6) 28. Rg5 {[%emt 0:01:06]} Qh7 {[%emt 0:07:39]} 29. Rc5 {[%emt 0:02:42]} ({Better is} 29. d5 $1 $15) 29... Qh6 {[%emt 0:01:42]} (29... Ng4+ $17 30. Kh3 f5) 30. Rf5 $1 {[%emt 0:02:31]} Ng4+ $2 {[%emt 0:00:30]} (30... Nh7 $1 $11 {and Black is okay.}) 31. Kh1 {[%emt 0:00:32]} Kg8 {[%emt 0:00:28]} 32. Rg5+ {[%emt 0:01:09]} Kf8 {[%emt 0:00:27] [#]} 33. Rxg4 $18 {[%emt 0:00:24] Pin} Qd6 {[%emt 0:00:32]} 34. Rg1 {[%emt 0:01:22]} Qxd4 {[%emt 0:00:21]} 35. Qg5 {[%emt 0:00:39]} Rd8 {[%emt 0:00:38]} 36. Qf5 {[%emt 0:00:38]} Ke7 {[%emt 0:00:31]} 37. Qg5+ {[%emt 0:00:39]} Qf6 {[%emt 0:00:25]} 38. Qxf6+ {[%emt 0:00:19]} Kxf6 {[%emt 0:00:01]} 39. Nxh5+ {[%emt 0:00:11]} Ke5 {[%emt 0:00:22]} 40. Rg2 {[%emt 0:00:45]} 1/2-1/2

[Event "Catalan Youth-ch 2020"]
[Site "Salou"]
[Date "2020.09.08"]
[Round "6.6"]
[White "Marcos Rodriguez, Raul"]
[Black "Iborra Polo, Eric"]
[Result "1/2-1/2"]
[ECO "B32"]
[WhiteElo "1459"]
[BlackElo "1640"]
[Annotator "NA RC"]
[PlyCount "84"]
[EventDate "2020.09.07"]
[EventType "swiss"]
[EventCountry "ESP"]
[SourceTitle "playchess.com"]
[Source "ChessBase"]
[SourceQuality "1"]
[TimeControl "5400+30"]

1. e4 {[%emt 0:00:00]} c5 {[%emt 0:00:00]} 2. Nf3 {[%emt 0:00:00]} Nc6 {[%emt 0:00:00]} 3. d4 {[%emt 0:00:28]} cxd4 {[%emt 0:00:08]} 4. Nxd4 {[%emt 0:00:10]} e5 {[%emt 0:00:48]} 5. Nb5 {[%emt 0:00:29]} a6 {[%emt 0:00:43]} 6. Nd6+ {[%emt 0:01:55]} Bxd6 {[%emt 0:00:46]} 7. Qxd6 {[%emt 0:00:07]} Qe7 {[%emt 0:00:31]} 8. Qd1 {[%emt 0:07:11]} Nf6 {[%emt 0:00:49]} 9. Nc3 {[%emt 0:00:24]} d6 {[%emt 0:00:50]} 10. Bg5 {[%emt 0:01:53]} Be6 {[%emt 0:00:28]} 11. Nd5 {[%emt 0:00:59]} Bxd5 {[%emt 0:00:32]} 12. exd5 {[%emt 0:00:19]} Nb8 {[%emt 0:00:13]} 13. Be2 {[%emt 0:03:34]} O-O {[%emt 0:01:31]} 14. O-O {[%emt 0:00:27]} h6 {[%emt 0:00:55]} 15. Be3 {[%emt 0:02:11]} Nbd7 {[%emt 0:01:01]} 16. c4 {[%emt 0:01:56]} Nh7 {[%emt 0:02:29]} 17. Rc1 {[%emt 0:02:46]} Rac8 {[%emt 0:04:30]} 18. b4 {[%emt 0:10:54]} f5 {[%emt 0:05:25]} 19. f3 {[%emt 0:02:57]} g5 {[%emt 0:06:55]} 20. c5 {[%emt 0:06:56]} Nhf6 {[%emt 0:03:24]} 21. Bc4 {[%emt 0:08:17]} e4 {[%emt 0:03:25]} 22. f4 {[%emt 0:03:16]} Ng4 {[%emt 0:03:08]} 23. Qe2 {[%emt 0:02:21]} Nxe3 {[%emt 0:01:05]} 24. Qxe3 {[%emt 0:00:08]} Kh7 {[%emt 0:01:29]} 25. cxd6 {[%emt 0:01:39]} Qf6 {[%emt 0:05:13]} 26. fxg5 {[%emt 0:08:55]} hxg5 {[%emt 0:00:51]} 27. g4 {[%emt 0:00:26]} Ne5 {[%emt 0:00:51]} 28. Qh3+ {[%emt 0:03:16]} Qh6 {[%emt 0:02:29]} 29. Qxh6+ {[%emt 0:00:29]} Kxh6 {[%emt 0:00:05]} 30. Be2 {[%emt 0:02:19]} f4 {[%emt 0:00:59]} 31. Rc7 {[%emt 0:05:44]} f3 {[%emt 0:06:27]} 32. Bd1 {[%emt 0:01:56]} Nxg4 {[%emt 0:01:34]} 33. Bxf3 {[%emt 0:07:29]} exf3 {[%emt 0:00:14]} 34. Rxf3 {[%emt 0:01:07]} Rxf3 {[%emt 0:01:16]} 35. Rxc8 {[%emt 0:00:40]} Rf7 {[%emt 0:00:16]} 36. Rc7 {[%emt 0:00:40]} Rf6 {[%emt 0:02:50]} 37. d7 {[%emt 0:00:43]} Rd6 {[%emt 0:00:22]} 38. Rc6 {[%emt 0:00:19]} bxc6 {[%emt 0:03:13]} 39. dxc6 {[%emt 0:00:01]} Rd1+ {[%emt 0:00:53]} 40. Kg2 {[%emt 0:00:04]} Ne5 {[%emt 0:07:32]} 41. c7 {[%emt 0:00:04]} Rd2+ {[%emt 0:00:07]} 42. Kg1 {[%emt 0:00:06]} Ng4 {[%emt 0:00:07]} 1/2-1/2

[Event "Catalan Youth-ch 2020"]
[Site "Salou"]
[Date "2020.09.08"]
[Round "6.7"]
[White "Mompel Ferruz, Xavier"]
[Black "Prada Villagrasa, Pau Manel"]
[Result "1/2-1/2"]
[ECO "C28"]
[WhiteElo "1505"]
[BlackElo "1573"]
[Annotator "NA RC"]
[PlyCount "70"]
[EventDate "2020.09.07"]
[EventType "swiss"]
[EventCountry "ESP"]
[SourceTitle "playchess.com"]
[Source "ChessBase"]
[SourceQuality "1"]
[TimeControl "5400+30"]

1. e4 {[%emt 0:00:00]} e5 {[%emt 0:00:06]} 2. Nc3 {[%emt 0:00:15]} Nf6 {[%emt 0:01:17]} 3. Bc4 {[%emt 0:00:37]} Nc6 {[%emt 0:01:31]} 4. d3 {[%emt 0:00:39]} Na5 {[%emt 0:01:22]} 5. Nge2 {[%emt 0:00:57]} Nxc4 {[%emt 0:01:05]} 6. dxc4 {[%emt 0:00:09]} d6 {[%emt 0:01:40]} 7. Qd3 {[%emt 0:03:04]} Be6 {[%emt 0:01:34]} 8. Be3 {[%emt 0:02:15]} Be7 {[%emt 0:01:04]} 9. O-O-O {[%emt 0:06:55]} Ng4 {[%emt 0:04:34]} 10. Ng3 {[%emt 0:00:00]} Bg5 {[%emt 0:01:58]} 11. Rdf1 {[%emt 0:07:39]} Bxe3+ {[%emt 0:06:25]} 12. fxe3 {[%emt 0:00:00]} Qd7 {[%emt 0:00:44]} 13. Nf5 {[%emt 0:00:00]} Bxf5 {[%emt 0:06:15]} 14. Rxf5 {[%emt 0:00:00]} O-O-O {[%emt 0:01:24]} 15. Rhf1 {[%emt 0:00:00]} f6 {[%emt 0:01:46]} 16. Rh1 {[%emt 0:06:26]} Kb8 {[%emt 0:03:49]} 17. h3 {[%emt 0:00:00]} Nh6 {[%emt 0:00:32]} 18. Rf2 {[%emt 0:00:59]} Nf7 {[%emt 0:00:43]} 19. Rd1 {[%emt 0:00:26]} Qc6 {[%emt 0:03:33]} 20. Rfd2 {[%emt 0:04:32]} Ng5 {[%emt 0:01:31]} 21. b4 {[%emt 0:02:34]} Qa6 {[%emt 0:00:57]} 22. Kb2 {[%emt 0:00:11]} Qb6 {[%emt 0:02:12]} 23. a3 {[%emt 0:01:22]} Ne6 {[%emt 0:00:59]} 24. Ka2 {[%emt 0:02:06]} c5 {[%emt 0:03:51]} 25. Nd5 {[%emt 0:03:09]} Qa6 {[%emt 0:02:03]} 26. b5 {[%emt 0:00:00]} Qa5 {[%emt 0:02:54]} 27. Qc3 {[%emt 0:02:48]} Qxc3 {[%emt 0:02:58]} 28. Nxc3 {[%emt 0:00:08]} Kc7 {[%emt 0:00:11]} 29. b6+ {[%emt 0:02:38]} axb6 {[%emt 0:01:10]} 30. Rxd6 {[%emt 0:03:35]} Rxd6 {[%emt 0:01:59]} 31. Nb5+ {[%emt 0:02:06]} Kb8 {[%emt 0:02:14]} 32. Rxd6 {[%emt 0:02:35]} Ng5 {[%emt 0:00:58]} 33. Rd7 {[%emt 0:12:40]} Nxe4 {[%emt 0:07:08]} 34. Rxg7 {[%emt 0:00:00]} Kc8 {[%emt 0:08:20]} 35. Rf7 {[%emt 0:12:51]} h5 {[%emt 0:00:00]} 1/2-1/2